[Event "GMT Biel Chess Festival classic"]
[Site "Biel/Bienne, Switzerland"]
[Date "????.??.??"]
[Round "1.1"]
[White "Naiditsch, Arkadij"]
[Black "Studer, NoÃ«l"]
[Result "1-0"]
[TimeControl "100 minutes for the first 40 moves + 50 minutes for the next 20 moves + 15 minutes for the rest of the game with an addition of 30 seconds per move starting from move one"]
[WhiteTitle "GM"]
[BlackTitle "GM"]
[WhiteFideId "4650891"]
[BlackFideId "1319620"]
[WhiteElo "2626"]
[BlackElo "2437"]

1. e4 {[%clk 01:30:55]} {[%emt 00:00:03]} e5 {[%clk 01:30:51]} {[%emt
00:00:10]} 2. Nf3 {[%clk 01:31:12]} {[%emt 00:00:13]} Nf6 {[%clk 01:31:17]}
{[%emt 00:00:04]} 3. Nc3 {[%clk 01:22:28]} {[%emt 00:09:13]} Nc6 {[%clk
01:31:40]} {[%emt 00:00:08]} 4. g3 {[%clk 01:22:43]} {[%emt 00:00:15]} d5
{[%clk 01:31:45]} {[%emt 00:00:26]} 5. exd5 {[%clk 01:22:56]} {[%emt 00:00:17]}
Nxd5 {[%clk 01:32:08]} {[%emt 00:00:07]} 6. Bg2 {[%clk 01:23:16]} {[%emt
00:00:10]} Nxc3 {[%clk 01:32:18]} {[%emt 00:00:19]} 7. bxc3 {[%clk 01:23:38]}
{[%emt 00:00:09]} Bc5 {[%clk 01:32:34]} {[%emt 00:00:14]} 8. O-O {[%clk
01:19:17]} {[%emt 00:04:50]} O-O {[%clk 01:32:08]} {[%emt 00:00:57]} 9. d3
{[%clk 01:19:19]} {[%emt 00:00:29]} Bb6 {[%clk 01:28:21]} {[%emt 00:04:17]} 10.
a4 {[%clk 01:07:16]} {[%emt 00:12:32]} Re8 {[%clk 01:19:18]} {[%emt 00:09:33]}
11. Nd2 {[%clk 00:56:42]} {[%emt 00:11:04]} Be6 {[%clk 01:10:41]} {[%emt
00:09:06]} 12. Rb1 {[%clk 00:47:28]} {[%emt 00:09:44]} Qd7 {[%clk 01:08:00]}
{[%emt 00:03:12]} 13. Nb3 {[%clk 00:36:46]} {[%emt 00:11:12]} Bg4 {[%clk
01:05:34]} {[%emt 00:02:57]} 14. Qe1 {[%clk 00:34:51]} {[%emt 00:02:24]} e4
{[%clk 01:04:26]} {[%emt 00:01:39]} 15. d4 {[%clk 00:31:07]} {[%emt 00:04:13]}
Re6 {[%clk 00:34:22]} {[%emt 00:30:34]} 16. Be3 {[%clk 00:29:14]} {[%emt
00:02:23]} Rae8 {[%clk 00:34:04]} {[%emt 00:00:49]} 17. Qd2 {[%clk 00:22:03]}
{[%emt 00:07:40]} Qd5 {[%clk 00:31:11]} {[%emt 00:03:23]} 18. c4 {[%clk
00:18:51]} {[%emt 00:03:42]} Qh5 {[%clk 00:23:14]} {[%emt 00:08:28]} 19. c5
{[%clk 00:16:38]} {[%emt 00:02:42]} Ne7 {[%clk 00:19:29]} {[%emt 00:04:15]} 20.
cxb6 {[%clk 00:17:00]} {[%emt 00:00:08]} Nf5 {[%clk 00:12:29]} {[%emt
00:07:30]} 21. bxc7 {[%clk 00:14:50]} {[%emt 00:02:40]} Bf3 {[%clk 00:07:57]}
{[%emt 00:05:02]} 22. Nc5 {[%clk 00:12:13]} {[%emt 00:03:07]} Bxg2 {[%clk
00:06:40]} {[%emt 00:01:48]} 23. Nxe6 {[%clk 00:11:42]} {[%emt 00:01:00]} fxe6
{[%clk 00:03:11]} {[%emt 00:03:59]} 24. Bg5 {[%clk 00:07:52]} {[%emt 00:04:20]}
Bf3 {[%clk 00:02:45]} {[%emt 00:00:57]} 25. h4 {[%clk 00:07:06]} {[%emt
00:01:16]} Qg4 {[%clk 00:02:56]} {[%emt 00:00:18]} 26. Kh2 {[%clk 00:07:22]}
{[%emt 00:00:14]} e3 {[%clk 00:03:21]} {[%emt 00:00:06]} 27. Qc3 {[%clk
00:05:24]} {[%emt 00:02:27]} exf2 {[%clk 00:02:38]} {[%emt 00:01:14]} 28. Bf4
{[%clk 00:05:28]} {[%emt 00:00:26]} Bc6 {[%clk 00:03:03]} {[%emt 00:00:05]} 29.
d5 {[%clk 00:02:57]} {[%emt 00:03:01]} exd5 {[%clk 00:03:01]} {[%emt 00:00:32]}
30. Rxf2 {[%clk 00:03:25]} {[%emt 00:00:02]} d4 {[%clk 00:02:23]} {[%emt
00:01:09]} 31. Qc4+ {[%clk 00:02:49]} {[%emt 00:01:06]} Kh8 {[%clk 00:02:23]}
{[%emt 00:00:30]} 32. Qxc6 {[%clk 00:02:31]} {[%emt 00:00:48]} bxc6 {[%clk
00:02:25]} {[%emt 00:00:28]} 33. Rb8 {[%clk 00:02:56]} {[%emt 00:00:05]} Nd6
{[%clk 00:01:30]} {[%emt 00:01:26]} 34. Bxd6 {[%clk 00:03:00]} {[%emt
00:00:25]} 1-0

[Event "GMT Biel Chess Festival classic"]
[Site "Biel/Bienne, Switzerland"]
[Date "????.??.??"]
[Round "1.2"]
[White "Pentala, Harikrishna"]
[Black "Adams, Michael"]
[Result "1/2-1/2"]
[TimeControl "100 minutes for the first 40 moves + 50 minutes for the next 20 moves + 15 minutes for the rest of the game with an addition of 30 seconds per move starting from move one"]
[WhiteTitle "GM"]
[BlackTitle "GM"]
[WhiteFideId "5007003"]
[BlackFideId "400041"]
[WhiteElo "2719"]
[BlackElo "2701"]

1. e4 {[%clk 01:30:51]} {[%emt 00:00:07]} e5 {[%clk 01:30:54]} {[%emt
00:00:07]} 2. Nf3 {[%clk 01:31:16]} {[%emt 00:00:05]} Nc6 {[%clk 01:31:20]}
{[%emt 00:00:04]} 3. Bb5 {[%clk 01:31:38]} {[%emt 00:00:08]} a6 {[%clk
01:31:46]} {[%emt 00:00:05]} 4. Ba4 {[%clk 01:32:00]} {[%emt 00:00:08]} Nf6
{[%clk 01:32:10]} {[%emt 00:00:06]} 5. O-O {[%clk 01:32:19]} {[%emt 00:00:11]}
Be7 {[%clk 01:32:35]} {[%emt 00:00:06]} 6. d3 {[%clk 01:32:23]} {[%emt
00:00:27]} b5 {[%clk 01:32:55]} {[%emt 00:00:10]} 7. Bb3 {[%clk 01:32:42]}
{[%emt 00:00:11]} d6 {[%clk 01:33:13]} {[%emt 00:00:12]} 8. a3 {[%clk
01:32:51]} {[%emt 00:00:21]} Na5 {[%clk 01:32:29]} {[%emt 00:01:14]} 9. Ba2
{[%clk 01:33:11]} {[%emt 00:00:09]} c5 {[%clk 01:32:52]} {[%emt 00:00:07]} 10.
Nc3 {[%clk 01:29:45]} {[%emt 00:03:57]} Be6 {[%clk 01:32:42]} {[%emt 00:00:39]}
11. Nh4 {[%clk 01:29:04]} {[%emt 00:01:10]} O-O {[%clk 01:32:15]} {[%emt
00:00:57]} 12. Nf5 {[%clk 01:28:30]} {[%emt 00:01:04]} Nc6 {[%clk 01:32:20]}
{[%emt 00:00:26]} 13. Nd5 {[%clk 01:25:16]} {[%emt 00:03:44]} Bxf5 {[%clk
01:30:40]} {[%emt 00:02:10]} 14. exf5 {[%clk 01:25:25]} {[%emt 00:00:21]} Rc8
{[%clk 01:29:55]} {[%emt 00:01:15]} 15. c3 {[%clk 01:21:04]} {[%emt 00:04:50]}
Nxd5 {[%clk 01:26:31]} {[%emt 00:03:55]} 16. Bxd5 {[%clk 01:21:24]} {[%emt
00:00:10]} Bf6 {[%clk 01:26:21]} {[%emt 00:00:40]} 17. a4 {[%clk 01:17:25]}
{[%emt 00:04:28]} Ne7 {[%clk 01:18:30]} {[%emt 00:08:22]} 18. Qf3 {[%clk
01:16:28]} {[%emt 00:01:27]} Nxd5 {[%clk 01:13:18]} {[%emt 00:05:43]} 19. Qxd5
{[%clk 01:16:21]} {[%emt 00:00:37]} Qd7 {[%clk 01:04:36]} {[%emt 00:09:13]} 20.
axb5 {[%clk 01:15:34]} {[%emt 00:01:17]} axb5 {[%clk 01:04:55]} {[%emt
00:00:11]} 21. g4 {[%clk 01:15:46]} {[%emt 00:00:16]} Qe7 {[%clk 00:44:41]}
{[%emt 00:20:44]} 22. Ra6 {[%clk 01:12:13]} {[%emt 00:04:02]} Rfd8 {[%clk
00:36:00]} {[%emt 00:09:12]} 23. Re1 {[%clk 01:07:31]} {[%emt 00:05:11]} h5
{[%clk 00:35:22]} {[%emt 00:01:09]} 24. gxh5 {[%clk 00:50:05]} {[%emt
00:17:56]} Bg5 {[%clk 00:33:47]} {[%emt 00:02:05]} 25. f4 {[%clk 00:47:24]}
{[%emt 00:03:11]} Bh4 {[%clk 00:27:41]} {[%emt 00:06:37]} 26. Re4 {[%clk
00:45:47]} {[%emt 00:02:06]} Qf6 {[%clk 00:25:03]} {[%emt 00:03:08]} 27. fxe5
{[%clk 00:41:28]} {[%emt 00:04:48]} dxe5 {[%clk 00:25:21]} {[%emt 00:00:13]} 28.
Rxf6 {[%clk 00:41:26]} {[%emt 00:00:32]} Rxd5 {[%clk 00:25:46]} {[%emt
00:00:05]} 29. Rb6 {[%clk 00:41:34]} {[%emt 00:00:21]} Rxd3 {[%clk 00:20:22]}
{[%emt 00:05:54]} 30. Kg2 {[%clk 00:33:55]} {[%emt 00:08:08]} Rd1 {[%clk
00:16:13]} {[%emt 00:04:40]} 31. Be3 {[%clk 00:33:38]} {[%emt 00:00:47]} Re1
{[%clk 00:09:52]} {[%emt 00:06:51]} 32. h6 {[%clk 00:28:05]} {[%emt 00:06:02]}
b4 {[%clk 00:05:21]} {[%emt 00:05:03]} 33. Rxh4 {[%clk 00:17:12]} {[%emt
00:11:22]} Rxe3 {[%clk 00:05:45]} {[%emt 00:00:07]} 34. hxg7 {[%clk 00:15:58]}
{[%emt 00:01:44]} Kxg7 {[%clk 00:05:45]} {[%emt 00:00:29]} 35. Kf2 {[%clk
00:15:30]} {[%emt 00:00:57]} Rd3 {[%clk 00:05:43]} {[%emt 00:00:33]} 36. Rbh6
{[%clk 00:15:45]} {[%emt 00:00:14]} Rg8 {[%clk 00:05:26]} {[%emt 00:00:48]} 37.
f6+ {[%clk 00:13:07]} {[%emt 00:03:07]} Kf8 {[%clk 00:05:55]} {[%emt 00:00:01]}
38. Rc4 {[%clk 00:13:25]} {[%emt 00:00:12]} Ke8 {[%clk 00:03:10]} {[%emt
00:03:16]} 39. Rxc5 {[%clk 00:12:42]} {[%emt 00:01:13]} bxc3 {[%clk 00:01:49]}
{[%emt 00:01:51]} 40. Rxe5+ {[%clk 00:10:56]} {[%emt 00:02:15]} Kd7 {[%clk
00:01:20]} {[%emt 00:00:59]} 41. bxc3 {[%clk 00:11:08]} {[%emt 00:00:18]} Rxc3
{[%clk 00:00:56]} {[%emt 00:00:55]} 42. Rh4 {[%clk 00:06:31]} {[%emt 00:05:06]}
Rc2+ {[%clk 00:25:17]} {[%emt 00:06:09]} 43. Ke3 {[%clk 00:36:34]} {[%emt
00:00:24]} Rc3+ {[%clk 00:24:03]} {[%emt 00:01:47]} 44. Kf2 {[%clk 00:31:28]}
{[%emt 00:05:36]} Rc2+ {[%clk 00:24:16]} {[%emt 00:00:17]} 45. Ke3 {[%clk
00:31:46]} {[%emt 00:00:12]} Rc3+ {[%clk 00:24:42]} {[%emt 00:00:05]} 46. Kd4
{[%emt 00:01:55]} 1/2-1/2

[Event "GMT Biel Chess Festival classic"]
[Site "Biel/Bienne, Switzerland"]
[Date "????.??.??"]
[Round "1.3"]
[White "Keymer, Vincent"]
[Black "Anton Guijarro, David"]
[Result "1-0"]
[TimeControl "100 minutes for the first 40 moves + 50 minutes for the next 20 moves + 15 minutes for the rest of the game with an addition of 30 seconds per move starting from move one"]
[WhiteTitle "GM"]
[BlackTitle "GM"]
[WhiteFideId "12940690"]
[BlackFideId "2285525"]
[WhiteElo "2487"]
[BlackElo "2703"]

1. d4 {[%clk 01:30:54]} {[%emt 00:00:05]} Nf6 {[%clk 01:30:42]} {[%emt
00:00:18]} 2. c4 {[%clk 01:31:17]} {[%emt 00:00:08]} e6 {[%clk 01:31:00]}
{[%emt 00:00:11]} 3. Nf3 {[%clk 01:31:36]} {[%emt 00:00:11]} d5 {[%clk
01:31:11]} {[%emt 00:00:19]} 4. Nc3 {[%clk 01:32:00]} {[%emt 00:00:06]} Bb4
{[%clk 01:31:20]} {[%emt 00:00:20]} 5. e3 {[%clk 01:24:40]} {[%emt 00:07:51]}
O-O {[%clk 01:22:17]} {[%emt 00:09:33]} 6. Bd2 {[%clk 01:25:03]} {[%emt
00:00:08]} b6 {[%clk 01:16:42]} {[%emt 00:06:05]} 7. cxd5 {[%clk 01:19:56]}
{[%emt 00:05:37]} exd5 {[%clk 01:16:57]} {[%emt 00:00:14]} 8. Bd3 {[%clk
01:19:54]} {[%emt 00:00:31]} Bb7 {[%clk 01:14:20]} {[%emt 00:03:06]} 9. O-O
{[%clk 01:16:27]} {[%emt 00:03:58]} Nbd7 {[%clk 01:07:02]} {[%emt 00:07:48]} 10.
Qc2 {[%clk 01:08:14]} {[%emt 00:08:43]} a6 {[%clk 00:53:48]} {[%emt 00:13:44]}
11. Ne5 {[%clk 01:04:26]} {[%emt 00:04:18]} c5 {[%clk 00:41:31]} {[%emt
00:12:46]} 12. a3 {[%clk 00:54:10]} {[%emt 00:10:47]} cxd4 {[%clk 00:26:23]}
{[%emt 00:15:38]} 13. exd4 {[%clk 00:42:09]} {[%emt 00:12:31]} Bxc3 {[%clk
00:25:53]} {[%emt 00:00:59]} 14. Bxc3 {[%clk 00:40:13]} {[%emt 00:02:27]} Ne4
{[%clk 00:22:31]} {[%emt 00:03:52]} 15. Bb4 {[%clk 00:37:12]} {[%emt 00:03:32]}
Re8 {[%clk 00:17:20]} {[%emt 00:05:41]} 16. f3 {[%clk 00:34:43]} {[%emt
00:02:59]} Nef6 {[%clk 00:15:06]} {[%emt 00:02:43]} 17. Rfe1 {[%clk 00:32:07]}
{[%emt 00:03:06]} Rc8 {[%clk 00:13:57]} {[%emt 00:01:39]} 18. Qf2 {[%clk
00:30:32]} {[%emt 00:02:05]} Nf8 {[%clk 00:12:47]} {[%emt 00:01:40]} 19. Bd2
{[%clk 00:29:22]} {[%emt 00:01:40]} N6d7 {[%clk 00:09:43]} {[%emt 00:03:34]} 20.
Ng4 {[%clk 00:27:53]} {[%emt 00:01:59]} Qc7 {[%clk 00:07:40]} {[%emt 00:02:33]}
21. Ne3 {[%clk 00:26:09]} {[%emt 00:02:14]} Ne6 {[%clk 00:06:00]} {[%emt
00:02:10]} 22. Nf5 {[%clk 00:26:02]} {[%emt 00:00:37]} Ndf8 {[%clk 00:06:02]}
{[%emt 00:00:27]} 23. Rac1 {[%clk 00:25:16]} {[%emt 00:01:16]} Qd7 {[%clk
00:05:17]} {[%emt 00:01:15]} 24. Qg3 {[%clk 00:24:54]} {[%emt 00:00:53]} Rxc1
{[%clk 00:04:59]} {[%emt 00:00:48]} 25. Rxc1 {[%clk 00:24:24]} {[%emt
00:01:00]} Ng6 {[%clk 00:05:00]} {[%emt 00:00:28]} 26. h4 {[%clk 00:21:24]}
{[%emt 00:03:30]} h5 {[%clk 00:05:24]} {[%emt 00:00:06]} 27. Nd6 {[%clk
00:20:51]} {[%emt 00:01:04]} Rd8 {[%clk 00:05:06]} {[%emt 00:00:48]} 28. Nxf7
{[%clk 00:15:40]} {[%emt 00:05:41]} Qxf7 {[%clk 00:05:24]} {[%emt 00:00:12]} 29.
Bxg6 {[%clk 00:16:02]} {[%emt 00:00:08]} Qf6 {[%clk 00:05:28]} {[%emt
00:00:26]} 30. Kh2 {[%clk 00:11:04]} {[%emt 00:05:29]} Qxd4 {[%clk 00:05:35]}
{[%emt 00:00:22]} 31. Re1 {[%clk 00:10:44]} {[%emt 00:00:49]} Bc8 {[%clk
00:02:34]} {[%emt 00:03:32]} 32. Rxe6 {[%emt 00:01:38]} 1-0

[Event "GMT Biel Chess Festival classic"]
[Site "Biel/Bienne, Switzerland"]
[Date "????.??.??"]
[Round "1.4"]
[White "Wojtaszek, Radoslaw"]
[Black "Ã‰douard, Romain"]
[Result "1/2-1/2"]
[TimeControl "100 minutes for the first 40 moves + 50 minutes for the next 20 moves + 15 minutes for the rest of the game with an addition of 30 seconds per move starting from move one"]
[WhiteTitle "GM"]
[BlackTitle "GM"]
[WhiteFideId "1118358"]
[BlackFideId "633429"]
[WhiteElo "2719"]
[BlackElo "2649"]

1. d4 {[%clk 01:30:56]} {[%emt 00:00:03]} Nf6 {[%clk 01:30:57]} {[%emt
00:00:04]} 2. c4 {[%clk 01:31:20]} {[%emt 00:00:05]} e6 {[%clk 01:31:24]}
{[%emt 00:00:03]} 3. Nf3 {[%clk 01:31:43]} {[%emt 00:00:06]} d5 {[%clk
01:31:51]} {[%emt 00:00:04]} 4. Nc3 {[%clk 01:32:07]} {[%emt 00:00:05]} c5
{[%clk 01:32:13]} {[%emt 00:00:08]} 5. cxd5 {[%clk 01:32:31]} {[%emt 00:00:07]}
cxd4 {[%clk 01:32:38]} {[%emt 00:00:05]} 6. Qxd4 {[%clk 01:32:28]} {[%emt
00:00:32]} exd5 {[%clk 01:33:03]} {[%emt 00:00:05]} 7. e4 {[%clk 01:32:28]}
{[%emt 00:00:30]} dxe4 {[%clk 01:33:11]} {[%emt 00:00:23]} 8. Qxd8+ {[%clk
01:29:33]} {[%emt 00:03:25]} Kxd8 {[%clk 01:33:37]} {[%emt 00:00:04]} 9. Ng5
{[%clk 01:29:52]} {[%emt 00:00:11]} Be6 {[%clk 01:34:04]} {[%emt 00:00:03]} 10.
Nxe6+ {[%clk 01:26:08]} {[%emt 00:04:14]} fxe6 {[%clk 01:32:47]} {[%emt
00:01:48]} 11. Bg5 {[%clk 01:21:53]} {[%emt 00:04:44]} h6 {[%clk 01:32:08]}
{[%emt 00:01:10]} 12. O-O-O+ {[%clk 01:21:29]} {[%emt 00:00:54]} Ke7 {[%clk
01:32:34]} {[%emt 00:00:04]} 13. Bh4 {[%clk 01:11:35]} {[%emt 00:10:24]} Kf7
{[%clk 01:24:25]} {[%emt 00:08:40]} 14. Rd8 {[%clk 00:58:21]} {[%emt 00:13:43]}
g5 {[%clk 01:20:53]} {[%emt 00:04:02]} 15. Bg3 {[%clk 00:58:41]} {[%emt
00:00:11]} Bg7 {[%clk 01:21:14]} {[%emt 00:00:09]} 16. Rxh8 {[%clk 00:58:53]}
{[%emt 00:00:17]} Bxh8 {[%clk 01:21:41]} {[%emt 00:00:04]} 17. Bb5 {[%clk
00:57:45]} {[%emt 00:01:38]} a6 {[%clk 01:16:50]} {[%emt 00:05:21]} 18. Ba4
{[%clk 00:56:20]} {[%emt 00:01:55]} b5 {[%clk 01:12:28]} {[%emt 00:04:52]} 19.
Bc2 {[%clk 00:56:42]} {[%emt 00:00:07]} Nc6 {[%clk 01:11:24]} {[%emt 00:01:35]}
20. Nxe4 {[%clk 00:46:13]} {[%emt 00:10:59]} Nd4 {[%clk 01:09:38]} {[%emt
00:02:15]} 21. Re1 {[%clk 00:43:02]} {[%emt 00:03:40]} Nxe4 {[%clk 00:59:24]}
{[%emt 00:10:44]} 22. Bxe4 {[%clk 00:43:24]} {[%emt 00:00:08]} Rc8+ {[%clk
00:59:48]} {[%emt 00:00:06]} 23. Kb1 {[%clk 00:43:36]} {[%emt 00:00:18]} Nf5
{[%clk 01:00:14]} {[%emt 00:00:04]} 24. Rc1 {[%clk 00:31:58]} {[%emt 00:12:08]}
Rxc1+ {[%clk 01:00:22]} {[%emt 00:00:23]} 25. Kxc1 {[%clk 00:32:23]} {[%emt
00:00:05]} Nxg3 {[%clk 01:00:48]} {[%emt 00:00:04]} 26. fxg3 {[%clk 00:32:19]}
{[%emt 00:00:34]} b4 {[%clk 01:00:25]} {[%emt 00:00:53]} 27. Kc2 {[%clk
00:32:11]} {[%emt 00:00:38]} a5 {[%clk 00:59:06]} {[%emt 00:01:49]} 28. h3
{[%clk 00:32:19]} {[%emt 00:00:22]} g4 {[%clk 00:56:35]} {[%emt 00:03:01]} 29.
hxg4 {[%clk 00:32:39]} {[%emt 00:00:10]} Be5 {[%clk 00:56:58]} {[%emt
00:00:06]} 30. a3 {[%clk 00:32:14]} {[%emt 00:00:56]} bxa3 {[%clk 00:57:23]}
{[%emt 00:00:06]} 31. bxa3 {[%clk 00:32:41]} {[%emt 00:00:03]} Bxg3 {[%clk
00:57:45]} {[%emt 00:00:08]} 32. Kd3 {[%clk 00:32:59]} {[%emt 00:00:11]} Kf6
{[%clk 00:57:34]} {[%emt 00:00:40]} 33. Bc6 {[%clk 00:32:46]} {[%emt 00:00:43]}
Kg5 {[%clk 00:57:55]} {[%emt 00:00:10]} 34. Bd7 {[%clk 00:32:55]} {[%emt
00:00:21]} Kxg4 {[%clk 00:58:12]} {[%emt 00:00:13]} 35. Bxe6+ {[%clk 00:33:22]}
{[%emt 00:00:04]} Kg5 {[%clk 00:58:36]} {[%emt 00:00:04]} 36. a4 {[%clk
00:33:47]} {[%emt 00:00:08]} Bd6 {[%clk 00:59:00]} {[%emt 00:00:05]} 37. g4
{[%clk 00:34:12]} {[%emt 00:00:04]} h5 {[%clk 00:59:26]} {[%emt 00:00:05]} 38.
gxh5 {[%clk 00:34:40]} {[%emt 00:00:03]} Kxh5 {[%clk 00:59:52]} {[%emt
00:00:04]} 39. Kc4 {[%clk 00:35:05]} {[%emt 00:00:04]} Bb4 {[%clk 01:00:18]}
{[%emt 00:00:04]} 40. Kb5 {[%clk 00:35:32]} {[%emt 00:00:04]} Kg5 {[%clk
01:00:44]} {[%emt 00:00:04]} 1/2-1/2

[Event "GMT Biel Chess Festival classic"]
[Site "Biel/Bienne, Switzerland"]
[Date "????.??.??"]
[Round "2.1"]
[White "Studer, NoÃ«l"]
[Black "Ã‰douard, Romain"]
[Result "1/2-1/2"]
[TimeControl "100 minutes for the first 40 moves + 50 minutes for the next 20 moves + 15 minutes for the rest of the game with an addition of 30 seconds per move starting from move one"]
[WhiteTitle "GM"]
[BlackTitle "GM"]
[WhiteFideId "1319620"]
[BlackFideId "633429"]
[WhiteElo "2437"]
[BlackElo "2649"]

1. d4 {[%clk 01:30:56]} {[%emt 00:00:02]} Nf6 {[%clk 01:30:50]} {[%emt
00:00:10]} 2. c4 {[%clk 01:31:22]} {[%emt 00:00:04]} e6 {[%clk 01:31:17]}
{[%emt 00:00:03]} 3. Nf3 {[%clk 01:31:48]} {[%emt 00:00:04]} d5 {[%clk
01:31:42]} {[%emt 00:00:05]} 4. Nc3 {[%clk 01:32:14]} {[%emt 00:00:04]} c5
{[%clk 01:30:14]} {[%emt 00:01:58]} 5. cxd5 {[%clk 01:32:37]} {[%emt 00:00:08]}
Nxd5 {[%clk 01:30:27]} {[%emt 00:00:17]} 6. e4 {[%clk 01:33:00]} {[%emt
00:00:06]} Nxc3 {[%clk 01:30:52]} {[%emt 00:00:05]} 7. bxc3 {[%clk 01:33:28]}
{[%emt 00:00:03]} cxd4 {[%clk 01:31:17]} {[%emt 00:00:05]} 8. cxd4 {[%clk
01:33:54]} {[%emt 00:00:03]} Bb4+ {[%clk 01:31:41]} {[%emt 00:00:05]} 9. Bd2
{[%clk 01:34:21]} {[%emt 00:00:04]} Bxd2+ {[%clk 01:32:05]} {[%emt 00:00:06]}
10. Qxd2 {[%clk 01:34:48]} {[%emt 00:00:03]} O-O {[%clk 01:32:30]} {[%emt
00:00:05]} 11. Bc4 {[%clk 01:34:52]} {[%emt 00:00:27]} Nd7 {[%clk 01:32:16]}
{[%emt 00:00:44]} 12. O-O {[%clk 01:35:10]} {[%emt 00:00:12]} b6 {[%clk
01:32:42]} {[%emt 00:00:05]} 13. Rfe1 {[%clk 01:34:50]} {[%emt 00:00:49]} Bb7
{[%clk 01:33:06]} {[%emt 00:00:05]} 14. Rad1 {[%clk 01:35:14]} {[%emt
00:00:06]} Rc8 {[%clk 01:32:23]} {[%emt 00:01:13]} 15. Bb3 {[%clk 01:35:39]}
{[%emt 00:00:05]} Re8 {[%clk 01:31:41]} {[%emt 00:01:12]} 16. h3 {[%clk
01:32:56]} {[%emt 00:03:13]} Nf6 {[%clk 01:28:08]} {[%emt 00:04:04]} 17. Qf4
{[%clk 01:32:04]} {[%emt 00:01:22]} Nh5 {[%clk 01:28:23]} {[%emt 00:00:14]} 18.
Qh2 {[%clk 01:30:24]} {[%emt 00:02:10]} h6 {[%clk 01:28:37]} {[%emt 00:00:16]}
19. Re3 {[%clk 01:19:11]} {[%emt 00:11:43]} Nf6 {[%clk 01:17:43]} {[%emt
00:11:23]} 20. d5 {[%clk 01:13:08]} {[%emt 00:06:34]} exd5 {[%clk 01:15:09]}
{[%emt 00:03:05]} 21. e5 {[%clk 01:13:30]} {[%emt 00:00:08]} Nh7 {[%clk
01:12:24]} {[%emt 00:03:14]} 22. Nd4 {[%clk 01:11:09]} {[%emt 00:02:52]} Qd7
{[%clk 01:10:15]} {[%emt 00:02:39]} 23. Qf4 {[%clk 00:50:20]} {[%emt 00:21:19]}
Nf8 {[%clk 01:05:39]} {[%emt 00:05:06]} 24. Nf5 {[%clk 00:48:13]} {[%emt
00:02:37]} Ng6 {[%clk 01:05:26]} {[%emt 00:00:42]} 25. Qg4 {[%clk 00:48:36]}
{[%emt 00:00:07]} Rc7 {[%clk 01:04:55]} {[%emt 00:01:00]} 26. Rde1 {[%clk
00:36:37]} {[%emt 00:12:30]} Kh7 {[%clk 01:01:28]} {[%emt 00:03:57]} 27. f4
{[%clk 00:20:18]} {[%emt 00:16:49]} Bc8 {[%clk 00:50:16]} {[%emt 00:11:41]} 28.
Nd6 {[%clk 00:20:38]} {[%emt 00:00:11]} Qxg4 {[%clk 00:50:26]} {[%emt
00:00:19]} 29. hxg4 {[%clk 00:21:05]} {[%emt 00:00:03]} Rd8 {[%clk 00:50:39]}
{[%emt 00:00:18]} 30. Nxc8 {[%clk 00:15:07]} {[%emt 00:06:28]} Rdxc8 {[%clk
00:46:29]} {[%emt 00:04:39]} 31. f5 {[%clk 00:13:52]} {[%emt 00:01:45]} Ne7
{[%clk 00:46:50]} {[%emt 00:00:08]} 32. Kf2 {[%clk 00:08:39]} {[%emt 00:05:44]}
b5 {[%clk 00:42:13]} {[%emt 00:05:07]} 33. Rd3 {[%clk 00:04:41]} {[%emt
00:04:28]} Rc5 {[%clk 00:37:55]} {[%emt 00:04:49]} 34. Red1 {[%clk 00:01:44]}
{[%emt 00:03:27]} Rd8 {[%clk 00:38:03]} {[%emt 00:00:22]} 35. f6 {[%clk
00:01:02]} {[%emt 00:01:12]} gxf6 {[%clk 00:38:18]} {[%emt 00:00:15]} 36. exf6
{[%clk 00:01:31]} Ng8 {[%clk 00:38:31]} {[%emt 00:00:16]} 37. Rxd5 {[%clk
00:00:35]} {[%emt 00:01:27]} Rcxd5 {[%clk 00:38:19]} {[%emt 00:00:42]} 38. Rxd5
{[%clk 00:00:58]} {[%emt 00:00:07]} Rxd5 {[%clk 00:38:45]} {[%emt 00:00:04]} 39.
Bxd5 {[%clk 00:01:27]} {[%emt 00:00:01]} Nxf6 {[%clk 00:39:09]} {[%emt
00:00:05]} 40. Bxf7 {[%clk 00:01:53]} {[%emt 00:00:05]} Nxg4+ {[%clk 00:39:34]}
{[%emt 00:00:05]} 41. Ke2 {[%clk 00:00:45]} {[%emt 00:01:38]} Kg7 {[%clk
00:37:58]} {[%emt 00:02:06]} 42. Be8 {[%clk 00:00:52]} {[%emt 00:00:23]} a6
{[%clk 00:37:42]} {[%emt 00:00:46]} 43. Kd3 {[%clk 00:26:22]} {[%emt 00:05:00]}
Kf6 {[%clk 01:07:13]} {[%emt 00:00:58]} 44. Kc3 {[%clk 00:19:13]} {[%emt
00:07:41]} Ke7 {[%clk 01:01:11]} {[%emt 00:06:32]} 45. Bh5 {[%clk 00:19:34]}
{[%emt 00:00:09]} Ne3 {[%clk 01:00:56]} {[%emt 00:00:45]} 46. Bf3 {[%clk
00:19:42]} {[%emt 00:00:22]} Kd6 {[%clk 00:59:22]} {[%emt 00:02:04]} 47. Kb4
{[%clk 00:19:55]} {[%emt 00:00:18]} Nc2+ {[%clk 00:56:09]} {[%emt 00:03:42]} 48.
Kc3 {[%clk 00:18:26]} {[%emt 00:01:59]} Ne3 {[%clk 00:56:29]} {[%emt 00:00:10]}
49. Kb4 {[%clk 00:18:52]} {[%emt 00:00:04]} Nd5+ {[%clk 00:53:08]} {[%emt
00:03:51]} 50. Bxd5 {[%clk 00:08:57]} {[%emt 00:10:26]} Kxd5 {[%clk 00:53:16]}
{[%emt 00:00:22]} 51. Ka5 {[%clk 00:09:25]} {[%emt 00:00:02]} h5 {[%clk
00:53:38]} {[%emt 00:00:07]} 52. Kxa6 {[%clk 00:09:52]} {[%emt 00:00:03]} Kc6
{[%clk 00:53:58]} {[%emt 00:00:10]} 53. g3 {[%clk 00:07:19]} {[%emt 00:03:04]}
b4 {[%clk 00:54:14]} {[%emt 00:00:14]} 54. Ka5 {[%clk 00:07:42]} {[%emt
00:00:07]} Kc5 {[%clk 00:54:42]} {[%emt 00:00:02]} 55. Ka6 {[%clk 00:08:02]}
{[%emt 00:00:09]} Kc6 {[%clk 00:53:11]} {[%emt 00:02:01]} 1/2-1/2